{"text_format":"1","workbook":"xlsx","n_sheets":3,"sheets":["Тну-1 (лист 1)","Тну-1 (лист 2-3)","Тну-1 (лист 4)"],"not_rendered":{"charts":0,"images":0,"macros":1,"external_links":0,"defined_names":1,"comments":0,"pivot_tables":0},"unopened":[],"bounds":{"document_bytes":16777216,"sheet_cells":100000,"rows_first":2000,"rows_last":500,"rows_between":2000,"halvings":0,"cell_chars":16384,"cell_head_chars":4096},"cells_cut":0,"cells_raw":0,"read":"whole","date_system":"1900"}

{"sheet":"Тну-1 (лист 1)","index":0,"n_rows":15,"n_cols":7,"rows_kept":15,"cut":false,"hidden":false,"merged":[[6,1,6,2],[5,3,5,4],[6,3,6,4],[7,1,7,2],[0,0,0,5],[2,0,3,0],[1,1,4,4],[5,1,5,2],[8,1,8,2],[9,3,9,4],[10,3,10,4],[14,1,14,2],[14,4,14,5],[11,0,11,5],[12,1,12,2],[12,4,12,5],[13,1,13,2],[13,4,13,5]]}
[" ФОРМА ТНУ-1 (лист 1)"]
["Сервисное локомотивное депо Чита филиал \"Дальневосточный\"  ООО \"ТМХ-Сервис\""," Наблюдательный лист  индивидуальной фотографии рабочего дня или производственного процесса",null,null,null,"Участок"]
["(наименование структурного подразделения)",null,null,null,null,null,"СО Карымская"]
[null,null,null,null,null,"Отделение"]
["филиал \"Дальневосточный\"  ООО \"ТМХ-Сервис\"",null,null,null,null,"СО Карымская"]
["Дата","Начало наблюдения",null,"Конец наблюдения",null,"Перерыв"]
[]
["Фамилия И.О.","Наименование профессии",null,"Разряд","Стаж работы по профессии, в т.ч. по разряду","Средний процент выполнения норм"]
[" "," Слесарь по ремонту и осмотру подвижного состава",null,null,"5 лет"]
["Наименование, завод-изготовитель","Тип, модель","Инвентарный номер","Краткая характеристика",null,"Состояние"]
[]
["Состояние организации труда на рабочем месте, включая его обслуживание"]
["Характеристика обстановки на рабочих местах ",null,null,"Характеристика качества применяемого инструмента и приспособлений  "]
["Порядок обслуживания материалом, инструментом  ",null,null,"Порядок ухода за оборудованием (смазка, чистка)"]
["Организация наладки оборудования, смены и заточки инструмента  ",null,null,"Подъемно-транспортные средства"]

{"sheet":"Тну-1 (лист 2-3)","index":1,"n_rows":31,"n_cols":13,"rows_kept":31,"cut":false,"hidden":false,"merged":[[0,0,0,6],[1,0,1,1],[2,0,2,1],[1,2,1,3],[2,2,2,3],[1,4,1,5],[2,4,2,5]]}
[" ФОРМА ТНУ-1 (лист 2-3)"]
["ФИО",null,"Специальность",null,"Тарифный разряд",null,"№ ФРД"]
[null,null,null,null,null,null,15]
["№ п.п.","Что наблюдается","Выполнено","Текущее время, час. мин","Продолжи-тельность, час. мин.","Перекрывается с № элемента","Индекс или код"]
[1,null,null,null," 00:00"," "]
[2,null,null,null,{"$f":"D6-D5","v":"00:00:00"}," ",null,null,null,null,null,"ПЗ","Подготовительно-заключительное "]
[3,null,null,null,{"$f":"D7-D6","v":"00:00:00"}," "," ",null,null,null,null,"Ор","Основное ручное"]
[4,null,null,null,{"$f":"D8-D7","v":"00:00:00"}," "," ",null,null,null,null,"Омр","Основное машинно-ручное"]
[5,null,null,null,"00:00:00"," "," ",null,null,null,null,"Ом","Основное мешинное"]
[6,null,null,null,"00:00:00"," "," ",null,null,null,null,"Вр","Вспомогательное ручное"]
[7,null,null,null,"00:00:00"," "," ",null,null,null,null,"Вмр","Вспомогательное машинно-ручное"]
[8,null,null,null,"00:00:00"," "," ",null,null,null,null,"Вм","Вспомогательное машинное"]
[9,null,null,null,"00:00:00"," "," ",null,null,null,null,"ОП","Итого оперативного"]
[10,null,null,null,"00:00:00"," "," ",null,null,null,null,"Об","Обслуживание рабочего места"]
[11,null,null,null,"00:00:00"," "," ",null,null,null,null,"РЗ","Итого продуктивного"]
[12,null,null,null,"00:00:00"," "," ",null,null,null,null,"СР","Случайная работа"]
[13,null,null,null,"00:00:00"," "," ",null,null,null,null,"НР","Лишняя непроизводительная работа"]
[14,null,null,null,"00:00:00"," "," ",null,null,null,null,"НЗ","Итого непродуктивного"]
[15,null,null,null,"00:00:00"," "," ",null,null,null,null,"ПТ","Технологические"]
[16,null,null,null,"00:00:00"," "," ",null,null,null,null,"Потл","Отдых и личные надобности"]
[17,null,null,null,"00:00:00"," "," ",null,null,null,null,"ПНТ","Вызванные нарушением производственного процесса"]
[18,null,null,null,"00:00:00"," "," ",null,null,null,null,"ПНД","Вызванные нарушением трудовой дисциплины"]
[19,null,null,null,"00:00:00"," "," ",null,null,null,null,"П","Итого перерывов"]
[20,null,null,null,"00:00:00"," "," "]
[21,null," ",null,"00:00:00"," "," "]
[22,null," ",null,"00:00:00"," "," "]
[23,null," ",null,"00:00:00"," "," "]
[24,null," ",null,"00:00:00"," "," "]
[25,null," ",null,"00:00:00"," "," "]
[26,null," ",null,"00:00:00"," "," "]
[27," Сдача смены"," "," 20:00",{"$error":"#VALUE!"}," "]

{"sheet":"Тну-1 (лист 4)","index":2,"n_rows":14,"n_cols":6,"rows_kept":14,"cut":false,"hidden":false,"merged":[[4,1,4,3],[5,1,5,3],[6,1,6,3],[7,1,7,3],[0,0,0,5],[1,0,1,5],[2,0,2,3],[3,1,3,3],[2,4,3,4],[2,5,3,5],[12,0,12,2],[12,3,12,5],[8,1,8,3],[9,1,9,3],[10,0,10,5],[11,0,11,5]]}
[" ФОРМА ТНУ-1 (лист 4)"]
["Сводка одноименных затрат времени по наб. листу № 19"]
[" Затраты рабочего времени ",null,null,null," Повторяемость"," Продолжитель-ность"]
[" Индекс или код "," Наименование "]
["О"," Основное время",null,null,null,{"$f":"SUM('Тну-1 (лист 2-3)'!E5:E31)","v":{"$error":"#VALUE!"}}]
["Об-1"," Подготовка и уборка рабочего места, приём и сдача, раскладка инструмента в начале смены и уборка по окончании, осмотр, чистка, смазка оборудования",null,null,null,15]
["ПЗ-2"," Инструктаж мастером, бригадиром",null,null,null,10]
["ПЗ-3"," Получение и сдача материала, деталей",null,null,null,25]
["Пл"," Личные надобности",null,null,null,28]
[" ","ИТОГО",null,null,19,660]
["Замечания и пояснения наблюдателя"]
[]
["Наблюдал",null,null,"Проверил"]
["Дата","Должность","Подпись","Дата","Должность","Подпись"]